[Event "EYTCC Open U12 2018"]
[Site "Bad Blankeburg"]
[Date "2018.07.12"]
[Round "1"]
[White "Adiguzel, Ufuk Alp"]
[Black "Razafindratsima, Timothe"]
[Result "1/2-1/2"]
[ECO "C50"]
[WhiteElo "1686"]
[BlackElo "1975"]
[Annotator "NA"]
[PlyCount "82"]
[EventDate "2018.07.12"]
[EventType "swiss"]
[EventCountry "GER"]
[SourceTitle "playchess.com"]
[Source "ChessBase"]
[SourceQuality "1"]
[TimeControl "40/5400+30:1800+30"]

1. e4 {[%emt 0:00:00]} e5 {[%emt 0:00:00]} 2. Nf3 {[%emt 0:00:00]} Nc6 {[%emt 0:00:00]} 3. Bc4 {[%emt 0:00:00]} Bc5 {[%emt 0:00:00]} 4. d3 {[%emt 0:00:00]} h6 {[%emt 0:00:19]} 5. Bb3 {[%emt 0:00:31]} d6 {[%emt 0:01:01]} 6. c3 {[%emt 0:00:06]} Nf6 {[%emt 0:02:31]} 7. Nbd2 {[%emt 0:00:12]} O-O {[%emt 0:00:52]} 8. O-O {[%emt 0:00:07]} a5 {[%emt 0:00:13]} 9. h3 {[%emt 0:01:31]} Be6 {[%emt 0:01:07]} 10. Re1 {[%emt 0:01:07]} Qb8 {[%emt 0:01:28]} 11. Nf1 {[%emt 0:01:19]} Qa7 {[%emt 0:02:46]} 12. Be3 {[%emt 0:00:09]} a4 {[%emt 0:02:38]} 13. Bc2 {[%emt 0:00:55]} Bxe3 {[%emt 0:02:08]} 14. Nxe3 {[%emt 0:02:43]} Ne7 {[%emt 0:02:37]} 15. d4 {[%emt 0:05:25]} Ng6 {[%emt 0:00:14]} 16. Nf5 {[%emt 0:02:41]} Rfe8 {[%emt 0:01:22]} 17. Qd2 {[%emt 0:10:18]} Rad8 {[%emt 0:07:07]} 18. Rad1 Bd7 {[%emt 0:09:08]} 19. Kh2 {[%emt 0:15:09]} Qb6 {[%emt 0:10:54]} 20. Bb1 d5 21. Nxe5 {[%emt 0:20:27]} Nxe5 {[%emt 0:22:33]} 22. dxe5 {[%emt 0:00:04]} Rxe5 {[%emt 0:01:36]} 23. f4 {[%emt 0:02:24]} Nxe4 {[%emt 0:05:00]} 24. Rxe4 {[%emt 0:00:04]} Rxe4 {[%emt 0:01:05]} 25. Bxe4 {[%emt 0:03:03]} dxe4 {[%emt 0:01:08]} 26. Ne3 {[%emt 0:00:57]} Rf8 {[%emt 0:10:36]} 27. Qxd7 {[%emt 0:04:27]} Qxe3 {[%emt 0:00:07]} 28. Qxc7 {[%emt 0:00:02]} Qf2 {[%emt 0:05:21]} 29. Rd8 {[%emt 0:24:50]} Rxd8 {[%emt 0:01:47]} 30. Qxd8+ {[%emt 0:00:08]} Kh7 31. Qc7 {[%emt 0:00:28]} Kg6 {[%emt 0:05:29]} 32. Qe5 {[%emt 0:01:06]} Qc2 {[%emt 0:02:55]} 33. f5+ {[%emt 0:01:36]} Kh7 {[%emt 0:00:52]} 34. f6 {[%emt 0:00:05]} Qf2 {[%emt 0:01:15]} 35. Qxe4+ {[%emt 0:00:38]} g6 {[%emt 0:00:17]} 36. Qe5 {[%emt 0:04:25]} h5 {[%emt 0:00:11]} 37. Qd6 {[%emt 0:00:40]} h4 {[%emt 0:00:52]} 38. Qe5 {[%emt 0:00:07]} Kh6 {[%emt 0:00:14]} 39. Qd6 {[%emt 0:00:31]} Kg5 {[%emt 0:00:32]} 40. Qd5+ {[%emt 0:00:54]} Kxf6 {[%emt 0:00:09]} 41. Qxb7 {[%emt 0:30:10]} Ke5 1/2-1/2

[Event "EYTCC Open U12 2018"]
[Site "Bad Blankeburg"]
[Date "2018.07.12"]
[Round "1"]
[White "Adiguzel, Ufuk Alp"]
[Black "Razafindratsima, Timothe"]
[Result "*"]
[ECO "D00"]
[WhiteElo "1686"]
[BlackElo "1975"]
[Annotator "NA"]
[PlyCount "52"]
[EventDate "2018.07.12"]
[EventType "swiss"]
[EventCountry "GER"]
[SourceTitle "playchess.com"]
[Source "ChessBase"]
[SourceQuality "1"]
[TimeControl "40/5400+30:1800+30"]

1. d4 {[%emt 0:00:00]} d5 {[%emt 0:00:00]} 2. Bf4 {[%emt 0:00:00]} c5 {[%emt 0:00:00]} 3. e3 {[%emt 0:00:00]} Nc6 {[%emt 0:00:01]} 4. c3 {[%emt 0:00:30]} Nf6 {[%emt 0:00:45]} 5. Nd2 {[%emt 0:01:32]} Bf5 {[%emt 0:02:01]} 6. Ngf3 {[%emt 0:07:04]} Qb6 {[%emt 0:06:33]} 7. Qb3 {[%emt 0:20:22]} c4 {[%emt 0:03:44]} 8. Qxb6 {[%emt 0:01:10]} axb6 {[%emt 0:00:04]} 9. a3 {[%emt 0:01:28]} b5 {[%emt 0:07:04]} 10. Rc1 {[%emt 0:01:58]} h6 {[%emt 0:03:40]} 11. Be2 {[%emt 0:06:45]} e6 {[%emt 0:03:43]} 12. O-O {[%emt 0:02:12]} Be7 {[%emt 0:03:55]} 13. Rfe1 {[%emt 0:03:10]} O-O {[%emt 0:01:47]} 14. h3 {[%emt 0:09:47]} g5 {[%emt 0:08:47]} 15. Bg3 {[%emt 0:01:49]} Bh7 {[%emt 0:06:22]} 16. Bd1 {[%emt 0:02:51]} Rfe8 {[%emt 0:11:56]} 17. Bc2 {[%emt 0:05:07]} Bxc2 {[%emt 0:03:18]} 18. Rxc2 {[%emt 0:00:01]} Nh5 {[%emt 0:01:53]} 19. Bh2 {[%emt 0:00:44]} f5 {[%emt 0:01:53]} 20. Ne5 {[%emt 0:02:23]} Nxe5 {[%emt 0:06:00]} 21. Bxe5 {[%emt 0:00:14]} Nf6 {[%emt 0:01:23]} 22. f3 {[%emt 0:02:22]} Nd7 {[%emt 0:03:59]} 23. Bh2 {[%emt 0:02:35]} Bf6 {[%emt 0:02:29]} 24. Nf1 {[%emt 0:03:30]} e5 {[%emt 0:11:05]} 25. dxe5 {[%emt 0:00:35]} Bxe5 {[%emt 0:00:43]} 26. Rd2 {[%emt 0:04:22]} Nf6 {[%emt 0:03:53]} *

[Event "EYTCC Open U12 2018"]
[Site "Bad Blankeburg"]
[Date "2018.07.13"]
[Round "2.2"]
[White "Laux, Dominik"]
[Black "Hommer, Jeremy"]
[Result "0-1"]
[ECO "A40"]
[WhiteElo "1877"]
[BlackElo "1926"]
[Annotator "NA"]
[PlyCount "79"]
[EventDate "2018.07.12"]
[EventType "swiss"]
[EventCountry "GER"]
[SourceTitle "playchess.com"]
[Source "ChessBase"]
[SourceQuality "1"]
[WhiteTeam "Germany"]
[BlackTeam "Germany"]
[WhiteTeamCountry "GER"]
[BlackTeamCountry "GER"]
[TimeControl "40/5400+30:1800+30"]

1. d4 {[%emt 0:00:06]} e6 {[%emt 0:00:00]} 2. Nf3 {[%emt 0:00:57]} b6 {[%emt 0:00:24]} 3. Bf4 {[%emt 0:00:59]} Bb7 {[%emt 0:00:10]} 4. e3 {[%emt 0:00:39]} f5 {[%emt 0:00:25]} 5. c4 {[%emt 0:01:04]} Nf6 {[%emt 0:00:22]} 6. Nc3 {[%emt 0:00:34]} Bb4 {[%emt 0:00:15]} 7. Bd3 {[%emt 0:02:04]} Bxc3+ {[%emt 0:01:40]} 8. bxc3 {[%emt 0:00:10]} O-O {[%emt 0:00:21]} 9. O-O {[%emt 0:01:37]} d6 {[%emt 0:03:43]} 10. Nd2 {[%emt 0:05:37]} Nbd7 {[%emt 0:04:31]} 11. Qb3 {[%emt 0:02:40]} Kh8 {[%emt 0:04:58]} 12. h3 {[%emt 0:10:25]} Rb8 {[%emt 0:07:23]} 13. Bh2 {[%emt 0:05:08]} Qe7 {[%emt 0:07:47]} 14. a4 {[%emt 0:03:15]} a5 {[%emt 0:00:16]} 15. Ra2 {[%emt 0:04:24]} Ba8 {[%emt 0:08:12]} 16. Nb1 {[%emt 0:03:18]} Rf7 {[%emt 0:05:18]} 17. Na3 {[%emt 0:03:44]} Rg8 {[%emt 0:01:11]} 18. Nb5 {[%emt 0:02:10]} Ne8 {[%emt 0:00:30]} 19. f3 {[%emt 0:09:51]} g5 {[%emt 0:00:41]} 20. Raf2 {[%emt 0:02:48]} g4 {[%emt 0:07:11]} 21. fxg4 {[%emt 0:03:01]} Rfg7 {[%emt 0:00:21]} 22. Be2 {[%emt 0:03:39]} fxg4 {[%emt 0:10:47]} 23. hxg4 {[%emt 0:03:39]} h5 {[%emt 0:03:04]} 24. Qc2 {[%emt 0:05:10]} hxg4 {[%emt 0:01:25]} 25. Bg3 {[%emt 0:01:56]} Qg5 {[%emt 0:10:22]} 26. Bd3 {[%emt 0:04:33]} Ndf6 {[%emt 0:03:57]} 27. Nxc7 {[%emt 0:12:34]} Rxc7 {[%emt 0:02:04]} 28. Bxd6 {[%emt 0:00:52]} Nxd6 {[%emt 0:03:56]} 29. Rxf6 {[%emt 0:00:15]} Ne4 {[%emt 0:03:24]} 30. Bxe4 {[%emt 0:03:25]} Qxe3+ {[%emt 0:00:06]} 31. Qf2 {[%emt 0:01:24]} Qxe4 {[%emt 0:01:59]} 32. Re1 {[%emt 0:00:57]} Qb7 {[%emt 0:04:47]} 33. Rexe6 {[%emt 0:01:20]} Rh7 {[%emt 0:01:52]} 34. Rh6 {[%emt 0:01:14]} Qg7 {[%emt 0:01:24]} 35. Qh4 {[%emt 0:00:51]} Be4 {[%emt 0:00:42]} 36. Rxh7+ {[%emt 0:00:18]} Bxh7 {[%emt 0:00:15]} 37. Rxb6 {[%emt 0:00:13]} g3 {[%emt 0:00:31]} 38. Qf6 {[%emt 0:00:40]} Re8 {[%emt 0:01:04]} 39. Qf1 {[%emt 0:01:15]} Qg5 {[%emt 0:00:45]} 40. Rf6 {[%emt 0:00:00]} 0-1

[Event "EYTCC Open U12 2018"]
[Site "Bad Blankeburg"]
[Date "2018.07.13"]
[Round "2.3"]
[White "Costa, Leonardo"]
[Black "Eilenberg, Jonas"]
[Result "1/2-1/2"]
[ECO "C54"]
[WhiteElo "1746"]
[BlackElo "1910"]
[Annotator "NA"]
[PlyCount "101"]
[EventDate "2018.07.12"]
[EventType "swiss"]
[EventCountry "GER"]
[SourceTitle "playchess.com"]
[Source "ChessBase"]
[SourceQuality "1"]
[WhiteTeam "Germany"]
[BlackTeam "Germany"]
[WhiteTeamCountry "GER"]
[BlackTeamCountry "GER"]
[TimeControl "40/5400+30:1800+30"]

1. e4 {[%emt 0:00:00]} e5 {[%emt 0:00:00]} 2. Nf3 {[%emt 0:00:00]} Nc6 {[%emt 0:00:00]} 3. Bc4 {[%emt 0:00:00]} Bc5 {[%emt 0:00:00]} 4. c3 {[%emt 0:00:00]} Nf6 {[%emt 0:00:18]} 5. d4 {[%emt 0:01:11]} exd4 {[%emt 0:00:14]} 6. cxd4 {[%emt 0:00:04]} Bb4+ {[%emt 0:00:20]} 7. Nbd2 {[%emt 0:00:05]} Bxd2+ {[%emt 0:03:44]} 8. Bxd2 {[%emt 0:00:16]} Nxe4 {[%emt 0:01:20]} 9. d5 {[%emt 0:00:15]} Ne7 {[%emt 0:01:51]} 10. O-O {[%emt 0:15:02]} O-O {[%emt 0:02:38]} 11. Bb4 {[%emt 0:00:59]} d6 {[%emt 0:01:52]} 12. Re1 {[%emt 0:01:29]} Nf6 {[%emt 0:03:06]} 13. Bc3 {[%emt 0:06:54]} Ng6 {[%emt 0:02:47]} 14. h3 {[%emt 0:07:05]} Rb8 {[%emt 0:04:50]} 15. Bb3 {[%emt 0:02:17]} Bd7 {[%emt 0:07:18]} 16. Qd2 {[%emt 0:02:02]} c6 {[%emt 0:14:08]} 17. dxc6 {[%emt 0:12:26]} Bxc6 {[%emt 0:00:20]} 18. Nd4 {[%emt 0:01:04]} Rc8 {[%emt 0:09:32]} 19. Nxc6 {[%emt 0:02:24]} bxc6 {[%emt 0:00:38]} 20. Rad1 {[%emt 0:04:21]} d5 {[%emt 0:01:22]} 21. f3 {[%emt 0:06:17]} Qc7 {[%emt 0:01:57]} 22. Qg5 {[%emt 0:01:08]} h6 {[%emt 0:01:38]} 23. Qf5 {[%emt 0:02:28]} Nh4 {[%emt 0:01:14]} 24. Qe5 {[%emt 0:01:06]} Qxe5 {[%emt 0:01:10]} 25. Bxe5 {[%emt 0:01:09]} Ng6 {[%emt 0:00:37]} 26. Bd6 {[%emt 0:01:07]} Rfd8 {[%emt 0:01:26]} 27. Bc5 {[%emt 0:01:40]} Rd7 {[%emt 0:01:27]} 28. Bc2 {[%emt 0:05:09]} Rb7 {[%emt 0:01:49]} 29. b4 {[%emt 0:01:32]} Re8 {[%emt 0:03:21]} 30. Rxe8+ {[%emt 0:01:23]} Nxe8 {[%emt 0:00:01]} 31. Ba4 {[%emt 0:05:30]} Rc7 {[%emt 0:00:34]} 32. Kf2 {[%emt 0:02:23]} Nf4 {[%emt 0:02:26]} 33. Kf1 {[%emt 0:01:52]} Ne6 {[%emt 0:01:06]} 34. Bf2 {[%emt 0:00:32]} f5 {[%emt 0:01:25]} 35. Rc1 {[%emt 0:00:23]} Nd8 {[%emt 0:00:47]} 36. Rc5 {[%emt 0:02:46]} Kf7 {[%emt 0:05:27]} 37. Bg3 {[%emt 0:05:05]} Rb7 {[%emt 0:00:55]} 38. b5 {[%emt 0:00:53]} cxb5 {[%emt 0:00:55]} 39. Bxb5 {[%emt 0:00:09]} f4 {[%emt 0:09:22]} 40. Be1 {[%emt 0:03:35]} Nc7 {[%emt 0:03:24]} 41. Bd3 {[%emt 0:33:54]} Nde6 {[%emt 0:31:27]} 42. Ra5 {[%emt 0:00:33]} g6 {[%emt 0:01:46]} 43. Bf2 {[%emt 0:02:13]} d4 {[%emt 0:01:06]} 44. Be4 {[%emt 0:00:48]} Rb2 {[%emt 0:00:50]} 45. Rxa7 {[%emt 0:00:00]} Kf6 {[%emt 0:00:00]} 46. Rxc7 {[%emt 0:00:00]} Rxf2+ {[%emt 0:00:00]} 47. Kxf2 {[%emt 0:00:00]} Nxc7 {[%emt 0:00:00]} 48. a4 {[%emt 0:00:00]} g5 {[%emt 0:00:00]} 49. Ke2 {[%emt 0:00:00]} Ke5 {[%emt 0:00:00]} 50. Kd3 {[%emt 0:00:00]} Ne6 {[%emt 0:00:00]} 51. Kc4 {[%emt 0:00:00]} 1/2-1/2

[Event "EYTCC Open U12 2018"]
[Site "Bad Blankeburg"]
[Date "2018.07.13"]
[Round "2.4"]
[White "Schubert, Nikita"]
[Black "Grabs, Peter"]
[Result "1-0"]
[ECO "A84"]
[WhiteElo "1984"]
[BlackElo "1649"]
[Annotator "NA"]
[PlyCount "77"]
[EventDate "2018.07.12"]
[EventType "swiss"]
[EventCountry "GER"]
[SourceTitle "playchess.com"]
[Source "ChessBase"]
[SourceQuality "1"]
[WhiteTeam "Germany"]
[BlackTeam "Germany"]
[WhiteTeamCountry "GER"]
[BlackTeamCountry "GER"]
[TimeControl "40/5400+30:1800+30"]

1. d4 {[%emt 0:00:00]} e6 {[%emt 0:00:00]} 2. Nf3 {[%emt 0:00:00]} f5 {[%emt 0:00:00]} 3. c4 {[%emt 0:00:04]} Nf6 {[%emt 0:00:01]} 4. e3 {[%emt 0:00:44]} d5 {[%emt 0:00:12]} 5. Bd3 {[%emt 0:00:19]} c6 {[%emt 0:00:14]} 6. O-O {[%emt 0:00:27]} Bd6 {[%emt 0:00:30]} 7. b3 {[%emt 0:00:40]} O-O {[%emt 0:00:16]} 8. Ba3 {[%emt 0:00:57]} Ne4 {[%emt 0:01:04]} 9. Bxd6 {[%emt 0:03:03]} Qxd6 {[%emt 0:00:17]} 10. Ne5 {[%emt 0:06:30]} Nd7 {[%emt 0:01:36]} 11. Nxd7 {[%emt 0:21:01]} Bxd7 {[%emt 0:00:44]} 12. Nd2 {[%emt 0:03:22]} Nf6 {[%emt 0:00:49]} 13. Nf3 {[%emt 0:01:56]} Be8 {[%emt 0:00:43]} 14. c5 {[%emt 0:04:14]} Qe7 {[%emt 0:01:41]} 15. Ne5 {[%emt 0:02:46]} Bh5 {[%emt 0:00:42]} 16. Qc2 {[%emt 0:02:54]} Nd7 {[%emt 0:01:13]} 17. Nxd7 {[%emt 0:04:39]} Qxd7 {[%emt 0:00:15]} 18. f4 {[%emt 0:02:43]} Kh8 {[%emt 0:02:16]} 19. b4 {[%emt 0:07:05]} a6 {[%emt 0:02:26]} 20. a4 {[%emt 0:01:34]} Ra7 {[%emt 0:02:40]} 21. b5 {[%emt 0:12:04]} axb5 {[%emt 0:00:45]} 22. axb5 {[%emt 0:00:14]} Rfa8 {[%emt 0:00:16]} 23. Rxa7 {[%emt 0:00:35]} Rxa7 {[%emt 0:00:28]} 24. Qb2 {[%emt 0:00:38]} Ra8 {[%emt 0:05:30]} 25. b6 {[%emt 0:06:18]} Qc8 {[%emt 0:02:35]} 26. Ra1 {[%emt 0:00:18]} Qb8 {[%emt 0:02:21]} 27. Ra3 {[%emt 0:01:29]} Bf7 {[%emt 0:01:08]} 28. Qa2 {[%emt 0:01:02]} Rxa3 {[%emt 0:00:22]} 29. Qxa3 {[%emt 0:00:00]} Kg8 {[%emt 0:00:36]} 30. Qa7 {[%emt 0:00:26]} Qc8 {[%emt 0:00:09]} 31. Ba6 {[%emt 0:00:59]} Qd8 {[%emt 0:03:18]} 32. Qxb7 {[%emt 0:00:17]} Be8 {[%emt 0:00:48]} 33. Qc8 {[%emt 0:00:39]} Qe7 {[%emt 0:00:20]} 34. b7 {[%emt 0:00:31]} h6 {[%emt 0:00:49]} 35. b8=Q {[%emt 0:00:27]} Qh4 {[%emt 0:00:13]} 36. Qxe8+ {[%emt 0:00:25]} Kh7 {[%emt 0:00:05]} 37. Qg8+ {[%emt 0:00:35]} Kg6 {[%emt 0:00:09]} 38. Qbe8+ {[%emt 0:00:15]} Kf6 {[%emt 0:00:12]} 39. Qef7# {[%emt 0:00:20]} 1-0

[Event "EYTCC Open U12 2018"]
[Site "Bad Blankeburg"]
[Date "2018.07.13"]
[Round "3"]
[White "Sokolovsky, Yahli"]
[Black "Stalmach, Richard"]
[Result "1/2-1/2"]
[ECO "B18"]
[WhiteElo "2106"]
[BlackElo "2063"]
[Annotator "NA"]
[PlyCount "132"]
[EventDate "2018.07.12"]
[EventType "swiss"]
[EventCountry "GER"]
[SourceTitle "playchess.com"]
[Source "ChessBase"]
[SourceQuality "1"]
[TimeControl "40/5400+30:1800+30"]

1. e4 {[%emt 0:00:00]} c6 {[%emt 0:00:00]} 2. d4 {[%emt 0:00:00]} d5 {[%emt 0:00:00]} 3. Nc3 {[%emt 0:00:00]} dxe4 {[%emt 0:00:00]} 4. Nxe4 {[%emt 0:00:00]} Bf5 {[%emt 0:00:00]} 5. Ng3 {[%emt 0:00:11]} Bg6 {[%emt 0:00:00]} 6. h4 {[%emt 0:00:09]} h6 {[%emt 0:00:00]} 7. h5 {[%emt 0:00:04]} Bh7 {[%emt 0:00:00]} 8. Nf3 {[%emt 0:00:08]} Nd7 {[%emt 0:00:00]} 9. Bd3 {[%emt 0:00:24]} Bxd3 {[%emt 0:00:00]} 10. Qxd3 {[%emt 0:00:02]} e6 {[%emt 0:00:00]} 11. Bd2 {[%emt 0:00:39]} Ngf6 {[%emt 0:00:02]} 12. O-O-O {[%emt 0:00:39]} Be7 {[%emt 0:00:06]} 13. Kb1 {[%emt 0:00:39]} Qb6 {[%emt 0:00:12]} 14. Ne4 {[%emt 0:02:28]} Rd8 {[%emt 0:01:02]} 15. c4 {[%emt 0:10:33]} c5 {[%emt 0:03:03]} 16. Be3 {[%emt 0:03:21]} O-O {[%emt 0:04:14]} 17. Rhg1 {[%emt 0:08:46]} Qa6 {[%emt 0:04:45]} 18. Nxf6+ {[%emt 0:04:46]} Bxf6 {[%emt 0:02:02]} 19. g4 {[%emt 0:04:49]} cxd4 {[%emt 0:06:04]} 20. Bxd4 {[%emt 0:05:17]} Ne5 {[%emt 0:06:46]} 21. Nxe5 {[%emt 0:02:13]} Bxe5 {[%emt 0:00:06]} 22. Qc3 {[%emt 0:01:43]} Rxd4 {[%emt 0:01:47]} 23. Rxd4 {[%emt 0:00:06]} Bxd4 {[%emt 0:01:20]} 24. Qxd4 {[%emt 0:00:08]} Qa5 {[%emt 0:02:27]} 25. Rd1 {[%emt 0:03:23]} Rc8 {[%emt 0:03:15]} 26. b3 {[%emt 0:04:32]} a6 {[%emt 0:01:11]} 27. f3 {[%emt 0:11:41]} Qc7 {[%emt 0:01:44]} 28. Qd7 {[%emt 0:06:12]} Kf8 {[%emt 0:01:51]} 29. Kc2 {[%emt 0:03:14]} b5 {[%emt 0:08:45]} 30. Qxc7 {[%emt 0:04:29]} Rxc7 {[%emt 0:00:29]} 31. Kc3 {[%emt 0:00:45]} bxc4 {[%emt 0:00:03]} 32. bxc4 {[%emt 0:00:05]} Ke7 {[%emt 0:00:26]} 33. a4 {[%emt 0:07:42]} Rc6 {[%emt 0:00:30]} 34. Kb4 {[%emt 0:02:23]} Rd6 {[%emt 0:04:14]} 35. Rc1 {[%emt 0:02:08]} Rd3 {[%emt 0:05:39]} 36. Kc5 {[%emt 0:02:59]} Kd7 {[%emt 0:04:33]} 37. Rb1 {[%emt 0:00:52]} Rxf3 {[%emt 0:01:46]} 38. Rb7+ {[%emt 0:00:57]} Kc8 {[%emt 0:02:20]} 39. Ra7 {[%emt 0:03:18]} e5 {[%emt 0:06:28]} 40. Re7 {[%emt 0:02:05]} Rf4 {[%emt 0:02:43]} 41. Rxe5 {[%emt 0:07:00]} Rxg4 {[%emt 0:00:09]} 42. Re7 {[%emt 0:00:30]} Rf4 {[%emt 0:04:26]} 43. Ra7 {[%emt 0:03:51]} Rf5+ {[%emt 0:05:53]} 44. Kb6 {[%emt 0:01:23]} Rf6+ {[%emt 0:00:09]} 45. Ka5 {[%emt 0:00:27]} g5 {[%emt 0:03:52]} 46. hxg6 {[%emt 0:02:19]} fxg6 {[%emt 0:00:08]} 47. c5 {[%emt 0:01:00]} h5 {[%emt 0:00:51]} 48. Rh7 {[%emt 0:00:40]} Re6 {[%emt 0:02:50]} 49. Kb4 {[%emt 0:01:25]} Re4+ {[%emt 0:00:06]} 50. Ka5 {[%emt 0:01:34]} h4 {[%emt 0:16:34]} 51. Kxa6 {[%emt 0:06:04]} Rxa4+ {[%emt 0:02:05]} 52. Kb6 {[%emt 0:00:27]} g5 {[%emt 0:21:50]} 53. Rh5 {[%emt 0:04:20]} Rb4+ {[%emt 0:05:13]} 54. Kc6 {[%emt 0:01:07]} Kb8 {[%emt 0:01:46]} 55. Rxg5 {[%emt 0:00:10]} Rf4 {[%emt 0:00:17]} 56. Rh5 {[%emt 0:00:28]} Rg4 {[%emt 0:00:35]} 57. Rh7 {[%emt 0:00:56]} Rg6+ {[%emt 0:00:48]} 58. Kb5 {[%emt 0:01:54]} Kc8 {[%emt 0:00:53]} 59. Rxh4 {[%emt 0:00:44]} Rf6 {[%emt 0:00:12]} 60. Rh8+ {[%emt 0:00:47]} Kc7 {[%emt 0:00:18]} 61. Rh7+ {[%emt 0:00:05]} Kc8 {[%emt 0:00:13]} 62. Ra7 {[%emt 0:00:14]} Kb8 {[%emt 0:00:10]} 63. Ra4 {[%emt 0:01:19]} Kb7 {[%emt 0:00:23]} 64. Rd4 {[%emt 0:00:12]} Rh6 {[%emt 0:00:37]} 65. Rd6 {[%emt 0:00:17]} Rh7 {[%emt 0:01:26]} 66. Ra6 {[%emt 0:00:22]} Rh1 {[%emt 0:00:26]} 1/2-1/2

[Event "EYTCC Open U12 2018"]
[Site "Bad Blankeburg"]
[Date "2018.07.13"]
[Round "3"]
[White "Strybuk, Artsiom I"]
[Black "Droin, Augustin"]
[Result "1-0"]
[ECO "B92"]
[WhiteElo "2079"]
[BlackElo "2095"]
[Annotator "NA"]
[PlyCount "59"]
[EventDate "2018.07.12"]
[EventType "swiss"]
[EventCountry "GER"]
[SourceTitle "playchess.com"]
[Source "ChessBase"]
[SourceQuality "1"]
[TimeControl "40/5400+30:1800+30"]

1. e4 {[%emt 0:00:00]} c5 {[%emt 0:00:00]} 2. Nf3 {[%emt 0:00:00]} d6 {[%emt 0:00:00]} 3. d4 {[%emt 0:00:00]} cxd4 {[%emt 0:00:01]} 4. Nxd4 {[%emt 0:00:00]} Nf6 {[%emt 0:00:23]} 5. Nc3 {[%emt 0:00:02]} a6 {[%emt 0:00:05]} 6. Be2 {[%emt 0:00:08]} e5 {[%emt 0:00:45]} 7. Nb3 {[%emt 0:00:08]} Be6 {[%emt 0:01:56]} 8. Bf3 {[%emt 0:01:53]} Be7 {[%emt 0:02:24]} 9. O-O {[%emt 0:00:12]} O-O {[%emt 0:00:32]} 10. Re1 {[%emt 0:00:06]} Nbd7 {[%emt 0:01:10]} 11. a4 {[%emt 0:00:17]} Qc7 {[%emt 0:03:22]} 12. Nd2 {[%emt 0:00:45]} Nb6 {[%emt 0:05:13]} 13. Nf1 {[%emt 0:01:17]} Rad8 {[%emt 0:04:17]} 14. Ne3 {[%emt 0:02:37]} Nc4 {[%emt 0:04:00]} 15. Ned5 {[%emt 0:06:11]} Bxd5 {[%emt 0:00:40]} 16. Nxd5 {[%emt 0:00:59]} Nxd5 {[%emt 0:00:08]} 17. exd5 {[%emt 0:05:35]} f5 {[%emt 0:09:57]} 18. b3 {[%emt 0:03:33]} Nb6 {[%emt 0:00:11]} 19. c4 {[%emt 0:06:12]} Bf6 {[%emt 0:03:23]} 20. Ra2 {[%emt 0:01:25]} Rde8 {[%emt 0:02:10]} 21. Rc2 {[%emt 0:05:54]} g6 {[%emt 0:03:13]} 22. Ba3 {[%emt 0:06:12]} Nd7 {[%emt 0:02:17]} 23. c5 {[%emt 0:05:51]} e4 {[%emt 0:07:59]} 24. Be2 {[%emt 0:10:16]} dxc5 {[%emt 0:03:29]} 25. b4 {[%emt 0:04:19]} e3 {[%emt 0:05:10]} 26. fxe3 {[%emt 0:10:56]} Rxe3 {[%emt 0:00:11]} 27. d6 {[%emt 0:01:17]} Qc6 {[%emt 0:07:27]} 28. Bc4+ {[%emt 0:01:52]} Kh8 {[%emt 0:00:10]} 29. Rxe3 {[%emt 0:00:32]} Bd4 {[%emt 0:00:17]} 30. Bb2 {[%emt 0:00:46]} 1-0

[Event "EYTCC Open U12 2018"]
[Site "Bad Blankeburg"]
[Date "2018.07.13"]
[Round "3"]
[White "Levin, Guy"]
[Black "Babula, Vlastimil"]
[Result "1-0"]
[ECO "A34"]
[WhiteElo "2008"]
[BlackElo "1800"]
[Annotator "NA"]
[PlyCount "49"]
[EventDate "2018.07.12"]
[EventType "swiss"]
[EventCountry "GER"]
[SourceTitle "playchess.com"]
[Source "ChessBase"]
[SourceQuality "1"]
[TimeControl "40/5400+30:1800+30"]

1. c4 {[%emt 0:00:00]} Nf6 {[%emt 0:00:00]} 2. Nc3 {[%emt 0:00:00]} c5 {[%emt 0:01:18]} 3. g3 {[%emt 0:00:36]} g6 {[%emt 0:01:01]} 4. Bg2 {[%emt 0:01:35]} Bg7 {[%emt 0:00:48]} 5. e3 {[%emt 0:01:42]} e6 {[%emt 0:04:44]} 6. Nge2 {[%emt 0:02:02]} Nc6 {[%emt 0:01:00]} 7. d4 {[%emt 0:02:56]} cxd4 {[%emt 0:01:15]} 8. Nxd4 {[%emt 0:01:14]} Nxd4 {[%emt 0:07:26]} 9. Qxd4 {[%emt 0:04:51]} O-O {[%emt 0:00:12]} 10. Qd6 {[%emt 0:01:00]} Ne8 {[%emt 0:00:41]} 11. Qd3 {[%emt 0:00:16]} Qc7 {[%emt 0:02:17]} 12. O-O {[%emt 0:04:56]} Rb8 {[%emt 0:04:08]} 13. b3 {[%emt 0:01:50]} d5 {[%emt 0:00:44]} 14. Ba3 {[%emt 0:02:28]} Qa5 {[%emt 0:02:39]} 15. Bxf8 {[%emt 0:00:47]} dxc4 {[%emt 0:02:13]} 16. Qxc4 {[%emt 0:04:36]} Kxf8 {[%emt 0:00:42]} 17. b4 {[%emt 0:02:42]} Qa3 {[%emt 0:00:49]} 18. Qc5+ {[%emt 0:01:06]} Kg8 {[%emt 0:00:34]} 19. Qe7 {[%emt 0:01:27]} Bd7 {[%emt 0:01:25]} 20. Qxd7 {[%emt 0:00:47]} Bxc3 {[%emt 0:00:52]} 21. Rac1 {[%emt 0:00:30]} Nf6 {[%emt 0:00:33]} 22. Qc7 {[%emt 0:00:14]} Re8 {[%emt 0:03:02]} 23. Qxc3 {[%emt 0:00:04]} Qxc3 {[%emt 0:00:17]} 24. Rxc3 {[%emt 0:00:07]} Re7 {[%emt 0:00:03]} 25. Rfc1 {[%emt 0:00:11]} 1-0